bitfinex-derivatives/quotes_SOLF0:USTF0_20241215
["timestamp","ask_amount","ask_price","bid_price","bid_amount"]
[1734264608984,2.2845,218.94,218.9,2.2848]
[1734264609482,2.18,218.98,218.87,7.64306438]
[1734264609677,2.18,219.01,218.93,2.2845]
[1734264609979,2.2841,218.98,218.93,2.2845]
[1734264611978,2.2842,218.97,218.93,2.2845]
[1734264615883,2.2843,218.95,218.91,2.2847]
[1734264616087,2.18,219.01,218.87,7.64306438]
[1734264616280,2.18,219.01,218.88,5.19888737]
[1734264616484,2.2844,218.95,218.9,2.2848]
[1734264617877,2.2845,218.94,218.9,2.2848]
[1734264618274,2.2845,218.94,218.91,2.2847]
[1734264618881,2.2844,218.95,218.91,2.2847]
[1734264619983,2.2845,218.94,218.91,2.2847]
[1734264620183,2.18,219.01,218.91,2.2847]
[1734264621986,2.2844,218.95,218.91,2.2847]
[1734264624586,2.2844,218.95,218.88,2.18]
[1734264624587,2.18,219.0,218.88,2.18]
[1734264624883,2.18,219.0,218.89,5.20076709]
[1734264625186,2.2841,218.98,218.9,5.20076709]
[1734264625384,2.2841,218.98,218.88,2.18]
[1734264625578,2.2841,218.98,218.93,2.2845]
[1734264628489,2.2841,218.98,218.94,2.2844]
[1734264630491,2.2841,218.97,218.94,2.2844]
[1734264636495,2.14,219.01,218.86,58.59811916]
[1734264636792,2.14,219.01,218.87,5.20376654]
[1734264636998,192.83188757,219.01,218.88,5.20376654]
[1734264637196,2.2847,218.92,218.89,5.20376654]
[1734264637390,2.2847,218.92,218.88,2.285]
[1734264637597,2.2847,218.92,218.89,5.20596498]
[1734264637900,2.2848,218.91,218.85,2.14]
[1734264638109,2.14,218.96,218.86,11.07878536]
[1734264638398,2.14,218.96,218.87,5.20565612]
[1734264638596,2.14,218.96,218.88,7.49065612]
[1734264638798,2.14,218.96,218.89,5.20565612]
[1734264638997,2.14,218.96,218.88,2.285]
[1734264639198,2.2847,218.92,218.89,5.20711585]
[1734264639498,2.2847,218.92,218.88,2.285]
[1734264639698,2.2847,218.92,218.89,5.20691276]
[1734264639901,2.2847,218.92,218.88,2.285]
[1734264640200,2.2847,218.92,218.89,5.20717485]
[1734264640389,2.2847,218.92,218.88,2.285]
[1734264640590,2.2847,218.92,218.89,5.20686598]
[1734264640794,2.2847,218.92,218.88,2.285]
[1734264640990,2.2847,218.92,218.89,5.20685952]
[1734264641191,2.2847,218.92,218.88,2.285]
[1734264641393,2.2847,218.92,218.89,5.20667651]
[1734264641596,2.2847,218.92,218.88,2.285]
[1734264642103,2.2847,218.92,218.89,5.20667651]
[1734264642297,2.2847,218.92,218.88,2.285]
[1734264642498,2.2847,218.92,218.89,5.20654774]
[1734264642701,2.2847,218.92,218.88,2.285]
[1734264642898,2.2847,218.92,218.89,5.20654939]
[1734264643094,2.2847,218.92,218.88,2.285]
[1734264643300,2.2847,218.92,218.89,5.20640313]
[1734264643500,2.2847,218.92,218.88,2.285]
[1734264643704,2.2847,218.92,218.89,5.20629796]
[1734264643903,2.2847,218.92,218.88,2.285]
[1734264644104,2.2847,218.92,218.89,5.20630902]
[1734264644304,2.2847,218.92,218.88,2.285]
[1734264644505,2.285,218.9,218.89,5.20624042]
[1734264644798,2.285,218.9,218.82,1.4959]
[1734264644799,2.285,218.9,218.85,2.14]
[1734264645004,2.14,218.96,218.86,11.08005159]
[1734264645207,2.14,218.96,218.87,5.20629007]
[1734264645401,2.14,218.96,218.88,5.20614957]
[1734264645605,2.14,218.96,218.89,5.20614957]
[1734264645805,2.14,218.96,218.85,2.14]
[1734264646106,2.14,218.96,218.86,5.20654998]
[1734264646405,2.14,218.96,218.87,8.56189774]
[1734264646703,2.14,218.99,218.88,8.56161781]
[1734264646902,2.14,218.99,218.89,5.20654998]
[1734264647099,2.904,219.02,218.9,5.20654998]
[1734264647302,2.904,219.02,218.85,7.60795099]
[1734264647303,2.14,219.01,218.91,5.20654998]
[1734264647506,2.14,219.01,218.94,2.2844]
[1734264647507,2.2841,218.98,218.94,2.2844]
[1734264647815,2.14,219.01,218.9,2.14]
[1734264648106,2.2842,218.97,218.92,2.2846]
[1734264650306,2.2842,218.97,218.93,2.2845]
[1734264656808,2.2842,218.97,218.94,2.2844]
[1734264657003,2.284,218.99,218.9,2.14]
[1734264657211,190.69188757,219.06,218.97,2.2841]
[1734264657404,5.55308406,219.05,218.95,2.08]
[1734264657708,5.55308406,219.05,218.96,5.20374294]
[1734264658114,5.55308406,219.05,218.97,5.20374294]
[1734264658412,2.2837,219.02,218.98,2.284]
[1734264658613,5.55308406,219.05,218.98,2.284]
[1734264659410,2.2838,219.01,218.98,2.284]
[1734264663411,5.55308406,219.05,218.92,58.49679739]
[1734264663617,2.2839,218.99,218.95,2.2843]
[1734264664416,2.2839,218.99,218.96,2.2842]
[1734264667014,2.2841,218.98,218.94,2.2844]
[1734264667318,2.08,219.02,218.92,58.49679739]
[1734264667512,2.08,219.02,218.93,5.19784422]
[1734264667711,2.08,219.02,218.92,58.49679739]
[1734264668110,2.08,219.02,218.93,2.2845]
[1734264669320,2.08,219.02,218.92,58.49679739]
[1734264669623,2.2839,218.99,218.94,2.2844]
[1734264670412,2.2839,218.99,218.95,2.2843]
[1734264678622,2.2839,218.99,218.94,2.2844]
[1734264678824,2.2839,218.99,218.92,58.49679739]
[1734264679025,2.2839,218.99,218.93,5.19970421]
[1734264679227,2.2839,218.99,218.95,2.2843]
[1734264679926,2.08,219.0,218.95,2.2843]
[1734264680130,2.2841,218.98,218.95,2.2843]
[1734264684027,2.2841,218.98,218.94,2.2845]
[1734264684226,2.2842,218.97,218.94,2.2845]
[1734264694530,2.2842,218.97,218.93,2.2845]
[1734264694731,2.2842,218.97,218.94,5.20949667]
[1734264694931,2.2842,218.97,218.93,2.2845]
[1734264695235,2.2842,218.97,218.94,7.49381524]
[1734264695534,2.2842,218.97,218.94,2.2844]
[1734264696138,2.2842,218.97,218.95,5.20896623]
[1734264696434,2.2842,218.97,218.94,2.2844]
[1734264697231,2.2842,218.97,218.95,5.20909757]
[1734264697436,2.2842,218.97,218.94,2.2844]
[1734264697636,2.2842,218.97,218.95,5.20919479]
[1734264697834,2.2842,218.97,218.94,2.2844]
[1734264698035,2.2842,218.97,218.95,5.20918822]
[1734264698240,2.2842,218.97,218.94,2.2844]
[1734264701136,2.2843,218.96,218.92,2.2847]
[1734264701339,2.08,219.0,218.92,2.2847]
[1734264702133,2.08,219.0,218.9,2.2848]
[1734264702734,192.77188757,219.0,218.9,2.2848]
[1734264703444,2.2845,218.94,218.9,2.2848]
[1734264705342,2.2845,218.94,218.91,5.21224198]
[1734264705542,2.2845,218.94,218.92,5.21224198]
[1734264705742,2.2845,218.94,218.9,2.2848]
[1734264705945,2.2845,218.94,218.91,5.21310562]
[1734264706247,2.2845,218.94,218.92,5.21310562]
[1734264706435,2.2845,218.94,218.9,2.2848]
[1734264706642,2.2845,218.94,218.91,5.21364067]
[1734264706838,2.2845,218.94,218.92,5.21364067]
[1734264707147,2.2845,218.94,218.9,2.2848]
[1734264707343,2.06,218.96,218.91,5.21519332]
[1734264707539,2.06,218.96,218.92,5.21519332]
[1734264707742,2.06,218.96,218.9,2.2848]
[1734264707938,2.06,218.96,218.91,5.21577107]
[1734264708142,2.06,218.96,218.9,2.2848]
[1734264708339,2.06,218.96,218.91,5.21668262]
[1734264708545,2.2845,218.94,218.9,2.2848]
[1734264708747,2.2845,218.94,218.91,5.21732445]
[1734264708942,2.06,218.96,218.86,2.06]
[1734264709146,2.2846,218.93,218.89,2.285]
[1734264709342,2.2846,218.93,218.9,5.21727544]
[1734264709547,2.2846,218.93,218.91,5.21727544]
[1734264709848,2.2846,218.93,218.92,5.21727544]
[1734264711157,2.2846,218.93,218.92,5.21532019]
[1734264711647,2.2846,218.93,218.92,5.21525444]
[1734264712447,2.2846,218.93,218.86,2.2852]
[1734264712448,2.2848,218.91,218.85,65.09825067]
[1734264712653,95.38137126,218.95,218.86,11.10198719]
[1734264712855,95.38137126,218.95,218.87,5.21657167]
[1734264713154,95.38137126,218.95,218.88,5.21657167]
[1734264713353,95.38137126,218.95,218.85,65.09825067]
[1734264713549,2.2847,218.92,218.86,5.2153899]
[1734264713745,2.2847,218.92,218.87,5.2153899]
[1734264714052,2.2847,218.92,218.85,65.09825067]
[1734264714254,2.2847,218.92,218.87,2.2851]
[1734264714851,2.2847,218.92,218.85,65.09825067]
[1734264715047,2.2847,218.92,218.88,2.2851]
[1734264716149,95.38137126,218.95,218.88,2.2851]
[1734264716352,2.2848,218.91,218.88,2.2851]
[1734264719852,2.2848,218.91,218.85,65.09825067]
[1734264720048,2.2848,218.91,218.87,2.2852]
[1734264720251,2.04,218.92,218.78,2.9623]
[1734264720452,2.04,218.92,218.81,2.2857]
[1734264720954,2.04,218.92,218.82,11.09706705]
[1734264721146,2.04,218.92,218.83,5.21419058]
[1734264721350,2.04,218.92,218.84,5.21419058]
[1734264721561,2.04,218.92,218.8,2.2859]
[1734264721752,2.04,218.92,218.81,5.2151023]
[1734264721953,2.04,218.92,218.82,5.2151023]
[1734264722155,2.04,218.92,218.83,5.2151023]
[1734264722357,2.04,218.92,218.8,2.2859]
[1734264722654,2.04,218.92,218.81,5.21022348]
[1734264722855,2.04,218.92,218.82,5.21022348]
[1734264723057,2.04,218.92,218.78,2.9623]
[1734264723248,2.2851,218.89,218.79,10.85471782]
[1734264723454,2.04,218.88,218.8,5.21021025]
[1734264723654,2.04,218.87,218.81,5.21021025]
[1734264723850,2.2857,218.82,218.78,5.2484]
[1734264724054,2.2857,218.82,218.79,5.20863773]
[1734264724258,2.2857,218.82,218.8,5.20863773]
[1734264724458,2.2857,218.82,218.81,5.20863773]
[1734264724655,2.04,218.85,218.76,2.2863]
[1734264724954,2.04,218.85,218.77,8.56389838]
[1734264725164,2.04,218.85,218.78,5.20732177]
[1734264725359,2.2859,218.8,218.79,5.20732177]
[1734264726054,2.04,218.81,218.74,5.48692086]
[1734264726259,2.04,218.81,218.75,8.55982112]
[1734264726458,2.04,218.81,218.76,5.20475181]
[1734264726654,2.04,218.81,218.77,5.20475181]
[1734264726855,2.04,218.81,218.74,5.48692086]
[1734264727056,2.04,218.81,218.75,5.20235386]
[1734264727256,2.04,218.81,218.76,5.20235386]
[1734264727560,2.04,218.81,218.77,7.48855386]
[1734264727755,2.2859,218.8,218.74,5.48692086]
[1734264727961,2.04,218.81,218.75,5.20084398]
[1734264728158,2.04,218.81,218.76,5.20084398]
[1734264728365,2.2862,218.78,218.74,5.48692086]
[1734264728558,2.04,218.81,218.74,5.48692086]
[1734264728866,2.04,218.81,218.72,1.5194]
[1734264729063,2.04,218.81,218.73,5.20069578]
[1734264729265,2.04,218.81,218.73,2.2866]
[1734264729462,2.04,218.81,218.72,1.5194]
[1734264729766,2.2863,218.77,218.72,3.8062]
[1734264729966,2.04,218.81,218.72,9.38804417]
[1734264730268,2.04,218.81,218.7,2.875]
[1734264730563,2.04,218.81,218.7,1.4624]
[1734264731267,2.2865,218.75,218.7,3.7493]
[1734264733375,2.2865,218.75,218.71,5.628146]
[1734264735470,2.2868,218.72,218.69,91.40124592]
[1734264735669,2.04,218.76,218.64,3.4812]
[1734264735873,2.04,218.76,218.65,5.61441881]
[1734264736065,2.2871,218.69,218.65,5.61441881]
[1734264736270,2.04,218.71,218.64,3.7288]
[1734264736873,2.2871,218.69,218.64,3.7288]
[1734264737974,2.2872,218.68,218.64,3.7288]
[1734264738170,2.2872,218.68,218.64,2.2876]
[1734264738870,2.2872,218.68,218.58,1.4918]
[1734264738871,2.04,218.67,218.58,1.4918]
[1734264739277,2.2877,218.64,218.59,2.2881]
[1734264739468,2.04,218.67,218.59,2.2881]
[1734264739673,2.04,218.67,218.58,1.4918]
[1734264739869,2.2877,218.63,218.58,2.2882]
[1734264740374,2.04,218.67,218.54,2.04]
[1734264740576,2.2878,218.62,218.58,5.42647302]
[1734264740773,2.04,218.67,218.54,2.04]
[1734264740970,2.04,218.67,218.55,5.17598808]
[1734264741169,2.04,218.67,218.52,1.4918]
[1734264741370,2.04,218.67,218.52,3.5318]
[1734264741874,2.04,218.67,218.53,5.51147032]
[1734264742172,4.4187,218.66,218.53,5.51147032]
[1734264742368,5.56146472,218.73,218.61,2.2879]
[1734264742569,5.56146472,218.73,218.54,2.04]
[1734264742570,2.04,218.72,218.54,2.04]
[1734264742772,2.04,218.72,218.55,5.17419392]
[1734264742975,2.04,218.72,218.54,2.04]
[1734264743174,2.2876,218.65,218.59,2.288]
[1734264743377,4.3276,218.65,218.59,2.288]
[1734264743972,2.04,218.65,218.53,5.51147032]
[1734264744281,2.04,218.65,218.54,5.1745944]
[1734264744479,2.04,218.65,218.53,5.51147032]
[1734264744778,2.04,218.65,218.54,5.1735594]
[1734264744978,2.04,218.65,218.53,5.51147032]
[1734264745180,2.288,218.6,218.53,5.51147032]
[1734264745676,2.288,218.6,218.55,2.2885]
[1734264746076,2.04,218.61,218.55,2.2885]
[1734264746273,2.04,218.61,218.56,2.2884]
[1734264747081,5.56146472,218.73,218.53,5.51147032]
[1734264747378,2.04,218.72,218.54,5.16863438]
[1734264747570,2.04,218.72,218.6,2.288]
[1734264747571,2.2874,218.66,218.6,2.288]
[1734264747875,4.3274,218.66,218.6,2.288]
[1734264748077,2.2875,218.65,218.6,2.288]
[1734264749776,2.04,218.66,218.53,5.51147032]
[1734264750373,2.2881,218.59,218.54,2.2886]
[1734264751076,2.04,218.6,218.35,15.60773875]
[1734264751279,2.04,218.6,218.41,2.9655]
[1734264751477,2.04,218.6,218.42,5.16576281]
[1734264751677,1.4596,218.59,218.43,5.16576281]
[1734264751979,1.4596,218.59,218.44,5.16576281]
[1734264752180,1.4596,218.59,218.41,2.9655]
[1734264752382,1.4596,218.59,218.46,2.2894]
[1734264752882,3.0636,218.58,218.46,2.2894]
[1734264753183,3.0636,218.58,218.47,5.3772931]
[1734264753585,3.0636,218.58,218.38,59.05562685]
[1734264753975,3.0636,218.58,218.39,5.16418599]
[1734264754176,3.0636,218.58,218.33,2.9393]
[1734264754383,3.0636,218.58,218.39,5.6057477]
[1734264755282,2.2898,218.43,218.39,5.6057477]
[1734264755580,2.04,218.42,218.34,1.4591]
[1734264755781,4.33,218.41,218.35,5.160184]
[1734264756083,2.04,218.4,218.36,5.160184]
[1734264756287,97.85661474,218.55,218.35,5.50130643]
[1734264756288,4.3303,218.39,218.35,5.50130643]
[1734264756477,2.04,218.38,218.35,5.50130643]
[1734264756880,2.04,218.38,218.34,1.4591]
[1734264757280,4.3303,218.38,218.34,1.4591]
[1734264757479,2.04,218.38,218.31,59.07473936]
[1734264757784,2.2904,218.37,218.31,59.07473936]
[1734264758382,2.2904,218.37,218.32,5.46968164]
[1734264758582,2.04,218.38,218.32,5.46968164]
[1734264758886,111.57661474,218.55,218.32,5.46968164]
[1734264758887,2.06,218.37,218.32,5.46968164]
[1734264759785,2.06,218.37,218.32,7.76058164]
[1734264760085,2.06,218.37,218.32,5.46968164]
[1734264760283,2.2903,218.39,218.33,2.2908]
[1734264760477,2.06,218.38,218.32,5.46968164]
[1734264760677,2.06,218.37,218.32,5.46968164]
[1734264761684,2.06,218.38,218.32,5.46968164]
[1734264761885,2.06,218.38,218.33,5.14570611]
[1734264762184,2.06,218.38,218.36,2.2905]
[1734264762384,2.06,218.39,218.36,2.2905]
[1734264762886,2.2896,218.46,218.32,5.46968164]
[1734264763080,2.2896,218.46,218.33,5.14429232]
[1734264763282,2.06,218.45,218.34,5.14565342]
[1734264763490,2.2896,218.46,218.35,5.14565342]
[1734264763786,2.2896,218.46,218.36,6.66125342]
[1734264763787,2.06,218.45,218.36,6.66125342]
[1734264763989,2.06,218.45,218.37,8.12965342]
[1734264764190,2.06,218.45,218.38,5.14565342]
[1734264764487,2.06,218.45,218.4,2.2901]
[1734264764691,2.2896,218.46,218.4,2.2901]
[1734264764881,2.06,218.45,218.4,2.2901]
[1734264765282,2.06,218.45,218.37,2.984]
[1734264765591,2.06,218.45,218.38,5.14679971]
[1734264765785,2.06,218.45,218.37,2.984]
[1734264765989,2.06,218.45,218.4,2.2901]
[1734264766185,2.06,218.45,218.37,2.984]
[1734264766581,2.06,218.45,218.38,5.14584719]
[1734264766787,4.3496,218.45,218.4,2.29]
[1734264766986,4.3496,218.45,218.37,2.984]
[1734264767184,4.3496,218.45,218.38,5.14805009]
[1734264767383,4.3496,218.45,218.39,5.14805009]
[1734264767591,2.2897,218.44,218.39,2.2902]
[1734264768385,2.06,218.45,218.32,5.46968164]
[1734264768589,1.475,218.44,218.32,5.46968164]
[1734264768787,4.4776,218.44,218.32,5.46968164]
[1734264769497,2.2905,218.37,218.32,5.46968164]
[1734264769692,2.06,218.36,218.32,5.46968164]
[1734264771596,2.06,218.35,218.32,5.46968164]
[1734264771999,2.06,218.35,218.23,1.4632]
[1734264772000,2.06,218.35,218.29,2.2912]
[1734264772701,4.4776,218.44,218.29,2.2912]
[1734264772897,2.06,218.43,218.29,2.2912]
[1734264773300,2.2908,218.34,218.29,2.2912]
[1734264773693,2.06,218.33,218.3,5.16134816]
[1734264773998,2.06,218.33,218.28,5.38676677]
[1734264774201,2.06,218.33,218.29,5.16134739]
[1734264774402,2.06,218.33,218.3,5.16134739]
[1734264774695,2.06,218.33,218.31,5.16199346]
[1734264774899,2.06,218.33,218.28,5.38676677]
[1734264775199,2.06,218.33,218.32,2.2909]
[1734264775394,2.06,218.33,218.28,5.38676677]
[1734264775602,2.06,218.33,218.29,5.16400534]
[1734264775796,2.06,218.33,218.28,5.38676677]
[1734264776401,2.06,218.33,218.29,2.2913]
[1734264776402,4.3509,218.33,218.29,2.2913]
[1734264777097,2.06,218.33,218.29,2.2913]
[1734264778301,2.06,218.33,218.3,5.16828657]
[1734264778495,2.06,218.33,218.29,2.2913]
[1734264778696,2.06,218.33,218.3,7.45938426]
[1734264778897,2.06,218.33,218.3,2.2911]
[1734264780296,2.06,218.33,218.23,1.4632]
[1734264780501,2.06,218.33,218.24,5.17448947]
[1734264780704,2.06,218.33,218.25,5.17448947]
[1734264780899,2.06,218.33,218.26,5.17448947]
[1734264781100,2.06,218.33,218.25,5.43822875]
[1734264781401,2.2913,218.3,218.26,5.1777484]
[1734264781705,2.06,218.29,218.25,7.72992875]
[1734264781899,2.06,218.28,218.25,7.72992875]
[1734264782099,2.06,218.27,218.25,7.72992875]
[1734264782301,2.06,218.27,218.24,2.2918]
[1734264782505,2.06,218.27,218.25,5.17772607]
[1734264782700,2.06,218.27,218.23,7.10111285]
[1734264782901,2.06,218.27,218.24,7.46954456]
[1734264783100,2.06,218.27,218.25,5.17774456]
[1734264783302,2.06,218.27,218.24,2.2918]
[1734264783503,2.06,218.27,218.25,5.17876582]
[1734264783702,2.06,218.27,218.24,2.2918]
[1734264783898,4.3515,218.27,218.25,5.17875065]
[1734264784101,4.3515,218.27,218.22,2.2919]
[1734264784302,4.3515,218.27,218.23,5.17765766]
[1734264784499,4.3515,218.27,218.22,2.2919]
[1734264784806,4.3515,218.27,218.23,5.17942098]
[1734264785007,4.3515,218.27,218.22,2.2919]
[1734264785404,4.3515,218.27,218.23,2.2918]
[1734264786503,4.3515,218.27,218.22,2.292]
[1734264786707,4.3515,218.27,218.23,5.18068009]
[1734264786907,4.3515,218.27,218.22,2.292]
[1734264787206,4.3515,218.27,218.23,5.18068011]
[1734264787509,4.3515,218.27,218.22,2.292]
[1734264787702,4.3515,218.27,218.23,5.18123022]
[1734264787903,2.06,218.27,218.23,2.2919]
[1734264788103,2.06,218.27,218.19,0.18451]
[1734264788799,2.06,218.27,218.13,5.40720549]
[1734264788800,2.06,218.27,218.02,18.54905753]
[1734264788997,2.06,218.27,218.09,5.43054618]
[1734264789201,2.06,218.27,218.1,5.18440341]
[1734264789399,2.06,218.27,218.11,5.18440341]
[1734264789605,2.06,218.27,218.12,5.18440341]
[1734264789810,2.06,218.27,218.09,5.43054618]
[1734264790110,2.06,218.27,218.1,5.18423669]
[1734264790311,2.06,218.27,218.09,7.72394618]
[1734264790501,2.06,218.27,218.1,5.18285057]
[1734264790712,2.2927,218.16,218.11,5.18285057]
[1734264790911,2.28,218.15,218.1,2.2933]
[1734264791207,2.2927,218.16,218.1,2.2933]
[1734264791208,2.28,218.14,218.1,2.2933]
[1734264791412,2.28,218.14,218.11,5.18282812]
[1734264791601,2.28,218.14,218.1,2.2933]
[1734264791910,2.28,218.14,218.11,5.18245556]
[1734264792110,2.28,218.14,218.1,2.2933]
[1734264792307,2.28,218.14,218.11,5.17969799]
[1734264792511,2.28,218.14,218.09,5.43054618]
[1734264792811,2.28,218.14,218.1,5.18346559]
[1734264793011,2.28,218.14,218.09,5.43054618]
[1734264793209,2.28,218.14,218.1,5.1835017]
[1734264793413,2.28,218.14,218.03,1.5056]
[1734264793711,2.28,218.14,218.04,5.1854705]
[1734264794007,2.28,218.14,218.05,5.1854705]
[1734264794313,2.2933,218.1,218.03,1.5056]
[1734264794608,2.28,218.09,218.04,5.18740984]
[1734264794907,79.86,218.3,218.05,5.18740984]
[1734264794908,2.2937,218.07,218.05,5.18740984]
[1734264795112,2.28,218.06,218.02,1.4324]
[1734264795313,2.28,218.06,218.03,5.18842805]
[1734264795512,2.28,218.06,218.04,5.18842805]
[1734264795703,2.28,218.06,218.02,1.4324]
[1734264795704,4.5737,218.06,218.05,5.18842805]
[1734264795904,4.5737,218.06,218.0,2.2943]
[1734264796305,4.5737,218.06,218.01,5.18485313]
[1734264796510,4.5737,218.06,218.02,5.18485313]
[1734264796710,4.5737,218.06,218.03,5.18485313]
[1734264797007,4.5737,218.06,218.04,5.18485313]
[1734264797208,4.5737,218.06,218.01,2.2942]
[1734264797416,4.5737,218.06,218.02,5.18504183]
[1734264797608,4.5737,218.06,218.03,5.18504183]
[1734264797804,2.28,218.05,218.04,5.18505749]
[1734264798115,2.2934,218.09,218.04,5.18505749]
[1734264798310,4.444,218.16,218.0,5.61295252]
[1734264798518,4.444,218.16,218.01,16.38623153]
[1734264798519,2.28,218.15,218.01,16.38623153]
[1734264798815,2.28,218.15,218.02,8.52683982]
[1734264799012,2.2932,218.11,218.03,5.18343806]
[1734264799208,2.28,218.1,218.04,5.18343806]
[1734264799414,2.28,218.1,218.05,5.18343806]
[1734264799706,2.28,218.09,218.06,7.47713806]
[1734264799910,2.28,218.09,218.07,5.18343806]
[1734264800109,2.28,218.09,218.06,2.2937]
[1734264800305,2.28,218.09,218.0,5.61295252]
[1734264800506,2.28,218.09,218.01,5.18181497]
[1734264800709,2.2938,218.05,218.02,5.18181497]
[1734264800917,2.28,218.04,218.0,7.90725252]
[1734264801107,2.28,218.04,218.01,5.18184454]
[1734264801311,2.28,218.04,218.02,5.18184454]
[1734264801512,2.28,218.04,218.03,5.18184454]
[1734264802018,2.28,218.09,218.03,5.18184454]
[1734264802212,2.28,218.09,218.04,5.18184454]
[1734264802408,2.28,218.09,218.05,5.18184454]
[1734264802612,2.8892,218.16,218.06,5.18184454]
[1734264802818,2.28,218.15,218.07,5.18184454]
[1734264803013,2.293,218.13,218.08,5.18184454]
[1734264803221,2.293,218.13,218.0,5.61295252]
[1734264803413,2.293,218.13,218.01,16.36770989]
[1734264803613,2.293,218.13,218.02,8.5170905]
[1734264803808,2.2931,218.12,218.03,8.5170905]
[1734264804015,2.28,218.15,218.04,5.17745085]
[1734264804210,2.28,218.15,218.06,2.2936]
[1734264804413,2.2932,218.11,218.07,5.17745085]
[1734264804720,2.2932,218.11,218.06,2.2936]
[1734264804721,2.28,218.1,218.06,2.2936]
[1734264804920,2.28,218.1,218.07,5.17675373]
[1734264805119,2.28,218.1,218.06,2.2936]
[1734264805619,2.28,218.1,218.0,5.61295252]
[1734264805620,2.28,218.1,218.07,7.46985068]
[1734264805923,2.28,218.1,218.07,2.2936]
[1734264806115,2.28,218.1,218.05,2.2937]
[1734264806315,4.5733,218.1,218.06,5.17603479]
[1734264806620,2.28,218.1,218.0,5.61295252]
[1734264806915,2.28,218.1,218.01,8.51478935]
[1734264807114,2.28,218.1,218.02,8.51478935]
[1734264807320,2.28,218.1,218.03,5.17605048]
[1734264807520,2.28,218.1,218.06,2.2937]
[1734264807914,2.28,218.1,218.0,5.61295252]
[1734264808116,2.28,218.1,218.01,8.51554218]
[1734264808314,2.28,218.1,218.02,5.17651018]
[1734264808512,2.28,218.1,218.03,5.17651018]
[1734264808713,2.28,218.1,218.04,5.17651018]
[1734264809018,2.28,218.1,218.05,5.17651018]
[1734264809212,2.28,218.1,218.0,5.61295252]
[1734264809412,2.28,218.1,218.01,8.52201411]
[1734264809609,2.28,218.1,218.02,5.18045259]
[1734264809809,2.28,218.1,218.03,5.18045259]
[1734264810010,2.2935,218.08,218.04,5.18045259]
[1734264810215,2.2935,218.08,218.03,2.294]
[1734264810414,2.28,218.1,218.0,5.61295252]
[1734264810614,2.2938,218.05,218.01,5.18362391]
[1734264810817,2.28,218.04,218.0,5.61295252]
[1734264811018,2.28,218.04,218.01,5.18364355]
[1734264811216,2.28,218.04,218.02,5.18614816]
[1734264811418,2.28,218.04,218.0,5.61295252]
[1734264811615,2.28,218.04,218.01,5.1861791]
[1734264811817,2.28,218.04,218.0,7.90715252]
[1734264812018,2.28,218.03,218.0,5.61295252]
[1734264812214,2.28,218.03,218.01,5.18618158]
[1734264812411,2.28,218.03,218.02,5.18618158]
[1734264813415,2.28,218.03,217.97,1.72377]
[1734264813615,2.28,218.03,217.98,5.1928985]
[1734264813824,2.28,218.03,217.99,7.4872985]
[1734264814121,2.28,218.03,218.0,5.1928985]
[1734264814325,2.28,218.03,218.01,5.1928985]
[1734264814521,2.28,218.03,217.97,0.23097]
[1734264814822,2.28,218.03,217.99,5.41456559]
[1734264815119,2.28,218.03,218.0,7.48726019]
[1734264815323,2.28,218.03,218.01,5.19296019]
[1734264815623,2.28,218.03,218.0,2.2943]
[1734264815818,2.28,218.03,218.01,5.19368111]